bitfinex/quotes_ETHUSD_20250924
["timestamp","ask_amount","ask_price","bid_price","bid_amount"]
[1758727747919,7.4857508,4201.9,4201.8,0.6816]
[1758727748220,9.86562657,4201.9,4201.8,0.6816]
[1758727749096,7.4857508,4201.9,4201.8,0.6816]
[1758727749297,10.50576644,4201.9,4201.8,0.6816]
[1758727749598,8.12589067,4201.9,4201.8,0.6816]
[1758727749994,7.4857508,4201.9,4201.8,0.6816]
[1758727750295,8.12589067,4201.9,4201.8,0.6816]
[1758727750603,7.4857508,4201.9,4201.8,0.6816]
[1758727751186,3.5127508,4201.9,4201.8,0.6816]
[1758727751405,6.973,4201.9,4201.8,0.6816]
[1758727751620,7.4857508,4201.9,4201.8,0.6816]
[1758727751820,3.5127508,4201.9,4201.8,0.6816]
[1758727751987,3.0,4201.9,4201.8,0.6816]
[1758727753221,0.5127508,4202.0,4201.8,0.6816]
[1758727753422,3.974,4202.2,4201.9,3.07683358]
[1758727753719,0.001,4202.2,4202.0,0.697]
[1758727753928,0.001,4202.2,4202.1,3.07676249]
[1758727754715,0.001,4202.2,4202.1,0.697]
[1758727755424,0.001,4202.2,4202.1,3.07676249]
[1758727755590,0.001,4202.2,4202.1,0.697]
[1758727756124,0.0002,4202.2,4202.1,0.697]
[1758727758313,0.0002,4202.2,4201.8,2.38191279]
[1758727758617,13.46533522,4201.9,4201.8,0.002]
[1758727758936,18.65698602,4201.9,4201.8,0.002]
[1758727759617,18.41838602,4201.9,4201.8,0.002]
[1758727760763,9.86562657,4201.9,4201.8,0.002]
[1758727760921,18.65698602,4201.9,4201.8,0.002]
[1758727761124,21.90167536,4201.9,4201.8,0.002]
[1758727761731,21.66307536,4201.9,4201.8,0.002]
[1758727762054,20.80967217,4201.9,4201.8,0.002]
[1758727762234,20.34237217,4201.9,4201.8,0.002]
[1758727763056,21.04827217,4201.9,4201.8,0.002]
[1758727763223,21.19577536,4201.9,4201.8,0.002]
[1758727766458,22.22637536,4201.9,4201.8,0.002]
[1758727766639,23.11989053,4201.9,4201.8,0.002]
[1758727768271,21.84027217,4201.9,4201.8,0.002]
[1758727771588,21.13437217,4201.9,4201.8,0.002]
[1758727771803,21.84027217,4201.9,4201.8,0.002]
[1758727772188,17.16137217,4201.9,4201.8,0.002]
[1758727772491,25.10644115,4201.9,4201.8,0.002]
[1758727773008,23.82327217,4201.9,4201.8,0.002]
[1758727776391,25.25427217,4201.9,4201.8,0.002]
[1758727779593,25.25427217,4201.9,4201.3,0.002]
[1758727779594,2.38010234,4201.5,4201.3,0.002]
[1758727779797,19.02732587,4201.5,4201.3,0.002]
[1758727780005,26.50407204,4201.5,4201.3,0.002]
[1758727780246,26.74267204,4201.5,4201.3,0.002]
[1758727780384,26.13221523,4201.5,4201.3,0.002]
[1758727780727,26.83811523,4201.5,4201.3,0.002]
[1758727780897,29.22940138,4201.5,4201.3,0.002]
[1758727781092,21.14394193,4201.5,4201.3,0.002]
[1758727781413,29.22940138,4201.5,4201.3,0.002]
[1758727782022,31.45240138,4201.5,4201.3,0.002]
[1758727782240,0.792,4201.2,4201.1,1e-08]
[1758727782413,20.17448255,4201.2,4201.1,1e-08]
[1758727782919,20.87528255,4201.2,4201.1,1e-08]
[1758727783429,20.87448255,4201.2,4201.1,1e-08]
[1758727786509,2.38049895,4200.8,4200.7,0.002]
[1758727786714,23.27329397,4200.8,4200.7,0.002]
[1758727787114,23.36875424,4200.8,4200.7,0.002]
[1758727787514,24.06955424,4200.8,4200.7,0.002]
[1758727787953,23.70092552,4200.8,4200.7,0.002]
[1758727788301,24.17459324,4200.8,4200.7,0.002]
[1758727789699,23.70559324,4200.8,4200.7,0.002]
[1758727789907,24.17459324,4200.8,4200.7,0.002]
[1758727791318,25.45684392,4200.8,4200.7,0.002]
[1758727792542,25.22504392,4200.8,4200.7,0.002]
[1758727792838,24.75604392,4200.8,4200.7,0.002]
[1758727794240,9.43450107,4200.8,4200.7,0.7077]
[1758727794409,14.61541828,4200.8,4200.7,0.7077]
[1758727794956,14.61541828,4200.8,4200.7,0.2502]
[1758727795113,14.61541828,4200.8,4200.7,0.002]
[1758727796067,14.61541828,4200.8,4200.7,0.2502]
[1758727796260,13.3331676,4200.8,4200.7,0.7077]
[1758727796428,15.72445375,4200.8,4200.7,0.7077]
[1758727796916,8.37999617,4200.8,4200.7,0.7077]
[1758727797112,11.94571002,4200.8,4200.7,0.7077]
[1758727798990,5.98871002,4200.8,4200.7,0.7077]
[1758727799298,5.98871002,4200.8,4200.7,0.2502]
[1758727799299,11.94571002,4200.8,4200.7,0.2502]
[1758727800259,11.94571002,4200.8,4200.7,0.002]
[1758727800560,14.33699617,4200.8,4200.7,0.7031]
[1758727801402,11.94571002,4200.8,4200.7,0.7031]
[1758727801707,11.94571002,4200.8,4200.7,0.002]
[1758727802403,11.94571002,4200.8,4200.7,0.2502]
[1758727802561,11.85024975,4200.8,4200.7,0.7031]
[1758727803803,11.33749895,4200.8,4200.7,0.2502]
[1758727804099,13.38758036,4200.8,4200.7,0.2502]
[1758727804678,13.90093319,4200.8,4200.7,0.2502]
[1758727804908,7.69051847,4200.8,4200.7,0.7031]
[1758727805247,11.85078355,4200.8,4200.7,0.002]
[1758727805393,12.36421654,4200.8,4200.7,0.002]
[1758727805599,12.36421654,4200.8,4200.7,0.7031]
[1758727805797,12.36421654,4200.8,4200.7,0.002]
[1758727805798,13.64759863,4200.8,4200.7,0.002]
[1758727805999,15.28712648,4200.8,4200.7,0.7031]
[1758727806213,15.28712648,4200.8,4200.7,0.2502]
[1758727806909,15.28712648,4200.8,4200.7,0.002]
[1758727807150,14.00374439,4200.8,4200.7,0.002]
[1758727809042,14.00374439,4200.8,4200.7,0.2502]
[1758727809241,14.00374439,4200.8,4200.7,0.24766489]
[1758727809450,5.49895562,4200.7,4200.4,0.4529]
[1758727809657,8.22552115,4200.7,4200.4,0.4529]
[1758727810419,8.22472115,4200.7,4200.3,0.002]
[1758727810641,8.66182115,4200.7,4200.3,0.002]
[1758727810851,8.91152115,4200.7,4200.3,0.002]
[1758727811053,18.277064,4200.7,4200.3,0.002]
[1758727811817,18.027364,4200.7,4200.3,0.002]
[1758727812018,8.22472115,4200.7,4200.3,0.002]
[1758727812317,5.89318861,4200.7,4200.6,0.6733]
[1758727812548,11.85018861,4200.7,4200.6,0.6733]
[1758727812853,9.86718861,4200.7,4200.6,0.6733]
[1758727813062,5.89318861,4200.7,4200.6,0.6733]
[1758727813217,9.86718861,4200.7,4200.6,0.6733]
[1758727813420,9.86718861,4200.7,4200.6,0.2426]
[1758727813919,9.86718861,4200.7,4200.6,0.6733]
[1758727814948,11.34158127,4200.7,4200.6,0.2426]
[1758727815152,11.34158127,4200.7,4200.6,0.002]
[1758727815665,7.36758127,4200.7,4200.6,0.6733]
[1758727815961,11.85018861,4200.7,4200.6,0.6733]
[1758727816181,5.89318861,4200.7,4200.6,0.002]
[1758727816381,9.86718861,4200.7,4200.6,0.002]
[1758727816586,7.32418861,4200.7,4200.6,0.2426]
[1758727816786,11.85018861,4200.7,4200.6,0.2426]
[1758727817585,11.85018861,4200.7,4200.6,0.6733]
[1758727818151,11.85018861,4200.7,4200.6,0.2426]
[1758727818649,13.39191127,4200.7,4200.6,0.2426]
[1758727818852,13.39191127,4200.7,4200.6,0.002]
[1758727819958,23.20245412,4200.7,4200.6,0.002]
[1758727820182,2.38072564,4200.4,4200.3,0.002]
[1758727820382,12.25844478,4200.4,4200.3,0.002]
[1758727821165,12.70344478,4200.4,4200.3,0.002]
[1758727821381,13.72854478,4200.4,4200.3,0.002]
[1758727823903,13.72854478,4200.4,4200.3,0.2426]
[1758727823904,13.05144478,4200.4,4200.3,0.2426]
[1758727824220,7.48743299,4200.4,4200.3,0.4307]
[1758727824420,9.86815863,4200.4,4200.3,0.4307]
[1758727824569,0.1184,4200.3,4200.1,0.022]
[1758727824884,11.15421459,4200.2,4200.1,0.022]
[1758727825268,11.15421459,4200.2,4200.1,0.4527]
[1758727825470,8.77337559,4200.2,4200.1,0.4527]
[1758727825670,4.48743299,4200.2,4200.1,0.4527]
[1758727825905,5.3446701,4200.2,4200.1,0.4527]
[1758727826070,1.3706701,4200.2,4200.1,0.4527]
[1758727826284,4.48743299,4200.2,4200.1,0.6933]
[1758727826485,0.51343299,4200.2,4200.1,0.6933]
[1758727826801,0.51343299,4200.2,4200.1,3.07419569]
[1758727826998,0.51343299,4200.2,4200.1,0.6933]
[1758727828010,0.51343299,4200.2,4200.1,3.07419569]
[1758727828213,0.51343299,4200.2,4200.1,0.6933]
[1758727829612,4.61688426,4200.4,4200.1,3.07417899]
[1758727829787,0.51416,4200.3,4200.1,2.40287899]
[1758727829987,0.51416,4200.3,4200.2,0.6713]
[1758727830387,0.51416,4200.3,4200.2,3.052139]
[1758727830582,0.51416,4200.3,4200.2,0.6713]
[1758727831114,0.51416,4200.3,4200.2,3.052139]
[1758727831320,0.64288426,4200.6,4200.3,2.38076819]
[1758727831619,3.973,4200.6,4200.4,0.6713]
[1758727831829,3.973,4200.6,4200.3,2.38076819]
[1758727831830,0.1184,4200.4,4200.1,0.022]
[1758727832042,2.380839,4200.2,4200.1,0.022]
[1758727832329,3.5729643,4200.2,4200.1,0.022]
[1758727837402,3.5721643,4200.2,4200.1,0.022]
[1758727838013,4.3641643,4200.2,4200.1,0.022]
[1758727840283,8.8590643,4200.2,4200.1,0.022]
[1758727840514,11.25035045,4200.2,4200.1,0.022]
[1758727840816,11.48345045,4200.2,4200.1,0.022]
[1758727841031,5.51845045,4200.2,4200.1,0.022]
[1758727841321,11.24935045,4200.2,4200.1,0.022]
[1758727842187,12.53369366,4200.2,4200.1,0.022]
[1758727842918,11.47435045,4200.2,4200.1,0.022]
[1758727844131,5.28535045,4200.2,4200.1,0.022]
[1758727844339,12.53465992,4200.2,4200.1,0.022]
[1758727845222,0.5140253,4200.2,4200.1,0.022]
[1758727845537,6.8748643,4200.2,4200.1,0.022]
[1758727848624,9.8748643,4200.2,4200.1,0.022]
[1758727850404,10.0998643,4200.2,4200.1,0.022]
[1758727850803,9.8748643,4200.2,4200.1,0.022]
[1758727851015,12.49115045,4200.2,4200.1,0.022]
[1758727852031,12.26615045,4200.2,4200.1,0.022]
[1758727852397,12.49115045,4200.2,4200.1,0.022]
[1758727855894,12.49215045,4200.2,4200.1,0.022]
[1758727857312,13.77645992,4200.2,4200.1,0.022]
[1758727857698,14.20585992,4200.2,4200.1,0.022]
[1758727857894,12.92155045,4200.2,4200.1,0.022]
[1758727859123,12.49215045,4200.2,4200.1,0.022]
[1758727859501,12.26715045,4200.2,4200.1,0.022]
[1758727860306,12.26715045,4200.2,4200.1,0.2704]
[1758727860915,12.26715045,4200.2,4200.1,0.022]
[1758727861260,12.26415045,4200.2,4200.1,0.022]
[1758727861462,12.51265045,4200.2,4200.1,0.022]
[1758727861760,12.26415045,4200.2,4200.1,0.022]
[1758727862437,12.51265045,4200.2,4200.1,0.022]
[1758727862644,12.26415045,4200.2,4200.1,0.022]
[1758727864451,12.26335045,4200.2,4200.1,0.022]
[1758727864980,9.8720643,4200.2,4200.1,0.7347]
[1758727866062,9.8720643,4200.2,4200.1,0.022]
[1758727867066,2.38100907,4199.9,4199.8,0.002]
[1758727867231,9.35600907,4199.9,4199.8,0.002]
[1758727868139,9.35600907,4199.9,4199.8,0.2504]
[1758727868340,9.35600907,4199.9,4199.8,0.7147]
[1758727868863,9.60450907,4199.9,4199.8,0.002]
[1758727869064,11.78541123,4199.9,4199.8,0.002]
[1758727869565,11.53691123,4199.9,4199.8,0.002]
[1758727871035,12.82349421,4199.9,4199.8,0.002]
[1758727871363,12.22881123,4199.9,4199.8,0.002]
[1758727872336,11.78541123,4199.9,4199.8,0.002]
[1758727872537,12.23371123,4199.9,4199.8,0.002]
[1758727873768,6.975,4199.9,4199.8,0.002]
[1758727873967,9.35600907,4199.9,4199.8,0.7174]
[1758727874175,10.64278325,4199.9,4199.8,0.7174]
[1758727874473,9.35600907,4199.9,4199.8,0.7174]
[1758727876354,9.35600907,4199.9,4199.8,0.002]
[1758727876676,13.18897587,4199.9,4199.8,0.002]
[1758727876849,12.74067587,4199.9,4199.8,0.002]
[1758727877051,8.52977587,4199.9,4199.8,0.002]
[1758727877274,12.50477587,4199.9,4199.8,0.002]
[1758727878281,11.15747793,4199.9,4199.8,0.002]
[1758727878581,11.15747793,4199.9,4199.8,0.2519]
[1758727878787,11.15747793,4199.9,4199.8,0.002]
[1758727880718,7.48969468,4199.9,4199.8,0.002]
[1758727880888,9.87070375,4199.9,4199.8,0.7174]
[1758727881884,9.87070375,4199.9,4199.8,0.002]
[1758727882084,11.01459825,4199.9,4199.8,0.002]
[1758727882814,11.01459825,4199.9,4199.8,0.2519]
[1758727882990,11.01459825,4199.9,4199.8,0.002]
[1758727883514,8.63358918,4199.9,4199.8,0.002]
[1758727883828,9.87070375,4199.9,4199.8,0.002]
[1758727885718,7.48969468,4199.9,4199.8,0.002]
[1758727886119,7.48869468,4199.9,4199.8,0.7174]
[1758727887121,9.86970375,4199.9,4199.8,0.002]
[1758727887323,11.48303153,4199.9,4199.8,0.002]
[1758727888309,11.24713153,4199.9,4199.8,0.002]
[1758727888704,11.48303153,4199.9,4199.8,0.002]
[1758727889706,11.93133153,4199.9,4199.8,0.002]
[1758727890330,13.21821481,4199.9,4199.8,0.002]
[1758727891033,11.93133153,4199.9,4199.8,0.002]
[1758727891772,11.93053153,4199.9,4199.8,0.002]
[1758727895127,6.29146576,4199.8,4199.7,0.002]
[1758727895454,10.91004946,4199.8,4199.7,0.002]
[1758727895622,11.68973525,4199.8,4199.7,0.002]
[1758727896019,11.68973525,4199.8,4198.6,0.7154]
[1758727896020,2.223,4199.4,4197.8,0.002]
[1758727896226,14.26611184,4199.0,4198.1,0.7354]
[1758727896449,20.73880652,4199.0,4198.1,0.7354]
[1758727896655,21.42300652,4199.0,4198.1,0.7354]
[1758727897621,20.97470652,4199.0,4198.4,0.7154]
[1758727897821,21.42300652,4199.0,4198.4,0.7154]
[1758727898046,23.81429267,4199.0,4198.4,0.7154]
[1758727898741,23.36599267,4199.0,4198.4,0.7154]
[1758727899124,24.65009987,4199.0,4198.4,0.7154]
[1758727899881,24.65009987,4199.0,4198.7,0.49800381]
[1758727899882,9.57160743,4199.0,4198.7,0.49800381]
[1758727900058,5.89621408,4199.0,4198.9,0.7174]
[1758727900517,3.51469468,4199.0,4198.9,0.7174]
[1758727900721,4.61666788,4199.0,4198.9,0.7174]
[1758727900921,3.975,4199.0,4198.9,0.7174]
[1758727901535,1.15636256,4199.2,4198.9,0.7174]
[1758727901730,3.975,4199.1,4199.0,0.6789]
[1758727902364,0.64166788,4199.3,4199.0,0.6789]
[1758727902531,3.975,4199.3,4199.1,0.6789]
[1758727902730,3.975,4199.3,4198.9,0.002]
[1758727902931,3.975,4199.3,4199.2,0.6789]
[1758727903461,0.51469468,4199.3,4199.2,0.6789]
[1758727903634,3.64166788,4199.4,4199.2,0.6789]
[1758727903845,3.975,4199.3,4198.9,0.24361347]
[1758727904064,4.61666788,4199.3,4198.9,0.002]
[1758727904229,3.975,4199.2,4198.9,0.002]
[1758727904428,4.48969468,4199.2,4199.0,0.6789]
[1758727904628,4.48969468,4199.2,4199.1,0.6789]
[1758727904828,3.975,4199.2,4199.1,0.6789]
[1758727905046,6.35640598,4199.2,4199.1,0.6789]
[1758727905275,4.48969468,4199.2,4199.1,0.6789]
[1758727905438,3.975,4199.2,4199.1,0.6789]
[1758727905960,6.35640598,4199.2,4199.1,0.6789]
[1758727906161,4.48969468,4199.2,4199.1,0.6789]
[1758727906392,2.3815194,4199.0,4198.9,0.002]
[1758727906564,6.87121408,4199.0,4198.9,0.002]
[1758727906728,15.65550652,4199.0,4198.9,0.002]
[1758727906927,17.6436978,4199.0,4198.9,0.002]
[1758727907259,17.1823978,4199.0,4198.9,0.002]
[1758727907766,17.6436978,4199.0,4198.9,0.002]
[1758727908625,9.08980536,4199.0,4198.9,0.002]
[1758727909967,4.48969468,4199.0,4198.9,0.002]
[1758727910177,4.61659384,4199.0,4198.9,0.6809]
[1758727910486,5.13128852,4199.0,4198.9,0.6809]
[1758727910659,7.51280792,4199.0,4198.9,0.6809]
[1758727910978,5.13828852,4199.0,4198.9,0.6809]
[1758727912082,7.51980792,4199.0,4198.9,0.6809]
[1758727912285,5.13828852,4199.0,4198.9,0.2435]
[1758727912484,4.62359384,4199.0,4198.9,0.2435]
[1758727912648,5.13828852,4199.0,4198.9,0.2435]
[1758727913380,4.49669468,4199.0,4198.9,0.2435]
[1758727913896,5.13828852,4199.0,4198.9,0.2435]
[1758727914086,0.51469468,4199.0,4198.9,0.6809]
[1758727914281,0.001,4199.1,4199.0,2.3815194]
[1758727914452,0.001,4199.1,4199.0,3.0604194]
[1758727915386,0.001,4199.1,4199.0,0.6789]
[1758727915552,0.001,4199.1,4199.0,3.0604194]
[1758727918814,0.0002,4199.1,4199.0,3.0604194]
[1758727919190,0.0002,4199.1,4199.0,21.41844622]
[1758727919487,0.0002,4199.1,4199.0,21.39463103]
[1758727922718,0.0002,4199.1,4199.0,12.0244194]
[1758727922925,0.0002,4199.1,4199.0,21.39463103]
[1758727925414,0.0002,4199.1,4199.0,6.0604194]
[1758727925620,0.0002,4199.1,4199.0,12.0234194]
[1758727925819,0.0002,4199.1,4199.0,12.0224194]
[1758727927119,0.0002,4199.1,4199.0,5.3815194]
[1758727927334,0.0002,4199.1,4199.0,9.3605194]
[1758727928110,0.0002,4199.1,4199.0,9.6043194]
[1758727928412,0.0002,4199.1,4199.0,10.0551194]
[1758727930235,0.0002,4199.1,4199.0,9.3605194]
[1758727931238,0.2499,4199.1,4198.9,0.002]
[1758727931541,0.2499,4199.1,4199.0,3.981]
[1758727932126,0.0002,4199.1,4199.0,3.981]
[1758727932299,0.0002,4199.1,4199.0,6.3625194]
[1758727935331,0.0002,4199.1,4199.0,7.0670194]
[1758727936299,0.0002,4199.1,4199.0,3.981]
[1758727936536,0.2488,4199.1,4199.0,3.982]
[1758727936743,0.2488,4199.1,4199.0,6.3635194]
[1758727936914,0.0002,4199.1,4199.0,6.3635194]
[1758727937234,0.2488,4199.1,4199.0,6.3635194]
[1758727937438,0.0002,4199.1,4199.0,6.3635194]
[1758727937738,0.0002,4199.1,4199.0,7.0680194]
[1758727941155,0.0002,4199.1,4199.0,7.1864194]
[1758727942560,0.0002,4199.1,4199.0,7.0680194]
[1758727942757,0.0002,4199.1,4199.0,7.1864194]
[1758727943772,0.0002,4199.1,4199.0,0.1204]
[1758727944010,0.6838,4199.1,4199.0,6.3625194]
[1758727944143,0.2488,4199.1,4199.0,6.3625194]
[1758727944666,0.0002,4199.1,4199.0,7.0670194]
[1758727945912,0.001,4199.6,4199.4,2.38129256]
[1758727946185,0.1194,4199.6,4199.5,6.36123586]
[1758727947638,0.1194,4199.6,4199.5,6.61043586]
[1758727948060,0.1194,4199.6,4199.5,6.36123586]
[1758727950689,0.1194,4199.6,4199.5,3.98]
[1758727950889,0.368,4199.6,4199.5,3.98]
[1758727951267,0.803,4199.6,4199.1,2.38141142]
[1758727951466,0.1194,4199.6,4199.2,3.978]
[1758727951670,0.6836,4199.5,4199.3,2.38134266]
[1758727951888,0.6836,4199.5,4199.4,3.978]
[1758727951889,0.435,4199.5,4199.4,3.978]
[1758727952084,0.1194,4199.6,4199.2,2.38139437]
[1758727952295,0.2486,4199.5,4199.3,3.978]
[1758727952492,0.2486,4199.4,4199.3,3.978]
[1758727952700,0.6836,4199.4,4199.3,3.978]
[1758727953298,0.6836,4199.4,4199.0,0.002]
[1758727953499,1.19696106,4199.3,4199.0,0.002]
[1758727953703,0.1184,4199.1,4199.0,3.98]
[1758727953907,0.802,4199.1,4199.0,3.98]
[1758727955370,0.802,4199.1,4199.0,0.002]
[1758727955572,4.4699537,4199.1,4199.0,0.002]
[1758727955894,4.68395343,4199.1,4199.0,0.002]
[1758727956094,3.82835986,4199.1,4199.0,0.002]
[1758727956295,4.68505359,4199.1,4199.0,0.002]
[1758727957309,3.82835986,4199.1,4199.0,0.002]
[1758727959722,3.39335986,4199.1,4199.0,0.002]
[1758727959928,3.82835986,4199.1,4199.0,0.002]
[1758727960281,4.68505359,4199.1,4199.0,0.002]
[1758727961407,0.77298044,4199.1,4199.0,0.002]
[1758727961611,4.15480539,4199.2,4199.0,0.002]
[1758727961811,3.25180702,4199.1,4199.0,0.002]
[1758727962015,4.21816808,4199.1,4199.0,0.002]
[1758727962889,3.57672375,4199.1,4199.0,0.002]
[1758727963982,4.43341748,4199.1,4199.0,0.002]
[1758727964319,3.57672375,4199.1,4199.0,0.002]
[1758727964518,5.0843119,4199.1,4199.0,0.002]
[1758727965230,9.73300563,4199.1,4199.0,0.002]
[1758727965524,8.8763119,4199.1,4199.0,0.002]
[1758727966423,10.3073119,4199.1,4199.0,0.002]
[1758727967220,12.06598656,4199.1,4199.0,0.002]
[1758727967395,6.17380302,4198.5,4197.1,0.02]
[1758727967602,6.17402996,4198.1,4197.1,0.02]
[1758727967803,21.31605808,4198.1,4197.1,0.02]
[1758727968034,21.99795808,4198.1,4197.1,0.02]
[1758727968231,20.95830265,4198.1,4197.1,0.02]
[1758727968546,24.62904423,4198.1,4197.1,0.02]
[1758727968700,2.38254074,4197.2,4197.1,0.02]
[1758727968900,18.56989265,4197.2,4197.1,0.02]
[1758727969122,19.76515371,4197.2,4197.1,0.02]
[1758727969347,21.30429958,4197.2,4197.1,0.02]
[1758727969914,5.92563994,4197.2,4197.1,0.02]
[1758727970118,9.26818795,4197.2,4197.1,0.02]
[1758727970300,9.95008795,4197.2,4197.1,0.02]
[1758727970826,14.07556704,4197.2,4197.1,0.02]
[1758727971032,19.36166704,4197.2,4197.1,0.02]
[1758727971427,0.453,4197.6,4197.1,0.02]
[1758727971428,3.02973814,4198.1,4197.1,0.02]
[1758727971632,2.38181043,4198.5,4197.2,0.0238254]
[1758727971835,14.47728943,4198.5,4197.5,2.38237045]
[1758727972008,3.0,4198.4,4197.6,0.6898]
[1758727972334,3.0,4198.4,4197.7,0.6898]
[1758727972534,3.0,4198.4,4197.8,0.6898]
[1758727972831,3.989,4198.5,4197.9,0.6898]
[1758727973044,2.77995975,4198.4,4197.6,0.2398]
[1758727973247,6.59971055,4198.5,4197.6,0.2398]
[1758727973398,4.2179,4198.5,4197.7,0.45]
[1758727973600,4.2179,4198.5,4197.8,0.2398]
[1758727973601,2.38186052,4198.4,4197.8,0.2398]
[1758727974286,6.59971777,4198.5,4197.8,0.2398]
[1758727974438,6.59971777,4198.5,4197.8,2.62199951]
[1758727974767,6.59971777,4198.5,4197.8,0.2398]
[1758727975066,2.38186665,4198.4,4197.8,0.2398]
[1758727975469,6.5997148,4198.5,4197.8,2.62199821]
[1758727975770,6.5997148,4198.5,4197.8,0.2398]
[1758727976430,0.51100321,4198.4,4197.8,0.2398]
[1758727977066,2.3820087,4198.2,4197.4,2.38241416]
[1758727977229,3.989,4198.2,4197.5,2.38236992]
[1758727977456,3.989,4198.2,4197.5,3.07216992]
[1758727977653,6.37097779,4198.2,4197.5,0.6898]
[1758727977865,2.38203088,4198.1,4197.5,0.6898]
[1758727978045,6.37098993,4198.2,4197.5,0.6898]
[1758727978242,6.37098993,4198.2,4197.5,3.072165]
[1758727978440,3.989,4198.2,4197.5,3.072165]
[1758727978648,4.50039077,4198.2,4197.5,3.072165]
[1758727979032,4.50039077,4198.2,4197.6,2.38230526]
[1758727979233,4.50039077,4198.2,4197.6,2.38226263]
[1758727979463,0.51155528,4198.4,4197.7,0.02382256]
[1758727979770,0.1184,4197.8,4197.7,3.09587951]
[1758727980330,3.988,4198.5,4197.7,0.6898]
[1758727980562,0.51155528,4198.7,4198.2,2.38195494]
[1758727980563,4.49955528,4198.7,4198.2,2.38195494]
[1758727980886,3.988,4198.7,4198.3,0.7007]
[1758727981438,3.988,4198.7,4198.3,0.4682]
[1758727981674,3.988,4198.7,4198.4,0.2325]
[1758727981831,3.988,4198.7,4198.5,0.7007]
[1758727982033,3.988,4198.7,4198.5,0.2325]
[1758727982232,0.1184,4198.5,4198.2,3.1064784]
[1758727982432,3.988,4198.7,4198.2,3.1064784]
[1758727982677,4.70020052,4198.7,4198.2,0.02381973]
[1758727982874,0.1184,4198.2,4197.6,0.7007]
[1758727983236,0.1184,4198.2,4197.7,2.38225695]
[1758727983466,0.1184,4198.0,4197.7,2.38225695]
[1758727983771,0.1184,4198.0,4197.8,2.38214785]
[1758727983973,0.1184,4198.0,4197.3,4.1054]
[1758727983974,0.1184,4198.0,4197.5,0.2325]
[1758727984275,0.1184,4198.0,4197.6,0.2325]
[1758727984473,0.1184,4198.0,4197.6,0.7007]
[1758727985190,0.2458,4198.0,4197.1,0.02]
[1758727985338,0.1184,4197.6,4197.1,0.02]
[1758727985541,0.1184,4197.6,4197.1,2.40258108]
[1758727985742,0.1184,4197.6,4197.2,0.7007]
[1758727986265,0.1184,4197.6,4197.3,0.7007]
[1758727986708,0.1184,4197.6,4197.1,2.40255894]
[1758727987006,0.1184,4197.6,4197.4,0.7007]
[1758727988467,0.1184,4197.6,4197.2,0.2325]
[1758727988670,0.1184,4197.6,4197.3,0.7007]
[1758727989407,0.1184,4197.6,4197.1,2.40458585]
[1758727989577,0.1184,4197.6,4197.1,2.40458136]
[1758727989772,0.1184,4197.6,4197.2,0.7007]
[1758727990175,0.6921,4197.5,4197.1,0.022]
[1758727990486,2.38237717,4197.5,4197.1,0.022]
[1758727990804,2.38246476,4197.4,4197.1,0.022]
[1758727991176,2.38251433,4197.3,4197.1,0.022]
[1758727991564,0.2458,4197.2,4197.1,0.022]
[1758727991899,3.17860627,4197.2,4197.1,0.022]
[1758727993111,6.17860627,4197.2,4197.1,0.022]
[1758727993313,6.69016155,4197.2,4197.1,0.022]
[1758727993916,6.69122238,4197.2,4197.1,0.022]
[1758727994406,10.68622238,4197.2,4197.1,0.022]
[1758727994608,10.89701746,4197.2,4197.1,0.022]
[1758727994811,10.01052238,4197.2,4197.1,0.022]
[1758727995611,10.65121746,4197.2,4197.1,0.022]
[1758727996381,5.14831119,4197.2,4197.1,0.022]
[1758727996578,6.89015685,4197.2,4197.1,0.7193]
[1758727996784,6.89015685,4197.2,4197.1,0.022]
[1758727997600,8.21045193,4197.2,4197.1,0.022]
[1758727998893,7.78055193,4197.2,4197.1,0.022]
[1758727999091,8.97127074,4197.2,4197.1,0.022]
[1758728000391,8.97047074,4197.2,4197.1,0.022]
[1758728001193,8.45865463,4197.2,4197.1,0.022]
[1758728001396,12.31079491,4197.2,4197.1,0.022]
[1758728001594,12.73686506,4197.2,4197.1,0.022]
[1758728002094,11.45865463,4197.2,4197.1,0.022]
[1758728002823,11.02875463,4197.2,4197.1,0.022]
[1758728003194,10.77905463,4197.2,4197.1,0.022]
[1758728003827,11.02875463,4197.2,4197.1,0.022]
[1758728004131,10.77905463,4197.2,4197.1,0.022]
[1758728004432,11.45865463,4197.2,4197.1,0.022]
[1758728006644,11.45865463,4197.2,4196.6,0.002]
[1758728006645,2.3828246,4196.7,4196.6,0.002]
[1758728006839,9.3788246,4196.7,4196.6,0.002]
[1758728007003,10.0584246,4196.7,4196.6,0.002]
[1758728007338,10.91156941,4196.7,4196.6,0.002]
[1758728007541,10.0584246,4196.7,4196.6,0.002]
[1758728007752,8.62724041,4196.7,4196.6,0.002]
[1758728007982,9.3798246,4196.7,4196.6,0.002]
[1758728008756,9.3788246,4196.7,4196.6,0.002]
[1758728009253,10.01814351,4196.7,4196.6,0.002]
[1758728011152,10.26784351,4196.7,4196.6,0.002]
[1758728012214,10.01849091,4196.7,4196.6,0.002]
[1758728012427,12.05416261,4196.7,4196.6,0.002]
[1758728012606,20.16073853,4196.7,4196.6,0.002]
[1758728013023,6.53422539,4196.7,4196.6,0.002]
[1758728013229,9.88955908,4196.7,4196.6,0.6993]
[1758728013646,0.51173448,4196.7,4196.6,0.6993]
[1758728013841,3.995,4196.7,4196.6,0.6993]
[1758728014235,4.50673448,4196.7,4196.6,0.6993]
[1758728014427,3.995,4196.7,4196.6,0.6993]
[1758728014917,4.50673448,4196.7,4196.6,0.6993]